[Event "Titled Tuesday Blitz January 04 2022"]
[White "Gokerkan, Cem Kaan"]
[Black "Drozdowski, Kacper"]
[WhiteFideId "6336760"]
[BlackFideId "1136720"]
[WhiteElo "2382"]
[BlackElo "2507"]
[Result "1/2-1/2"]
[Round "04"]
[TimeControl "180+1"]
[Date "2022.01.04"]
[WhiteClock "0:00:09"]
[BlackClock "0:00:32"]

1. e4 {[%clk 0:02:54]}  c5 {[%clk 0:02:59]} 2. Nf3 {[%clk 0:02:54]}  e6 {[%clk 0:03:00]} 3. d4 {[%clk 0:02:54]}  cxd4 {[%clk 0:03:01]} 4. Nxd4 {[%clk 0:02:55]}  Nc6 {[%clk 0:03:01]} 5. Nc3 {[%clk 0:02:55]}  Qc7 {[%clk 0:03:02]} 6. Be3 {[%clk 0:02:54]}  a6 {[%clk 0:03:02]} 7. Qd2 {[%clk 0:02:54]}  Nf6 {[%clk 0:03:03]} 8. f4 {[%clk 0:02:54]}  Bb4 {[%clk 0:03:02]} 9. Bd3 {[%clk 0:02:53]}  d6 {[%clk 0:03:02]} 10. a3 {[%clk 0:02:52]}  Bc5 {[%clk 0:02:59]} 11. Nxc6 {[%clk 0:02:47]}  Qxc6 {[%clk 0:02:57]} 12. Bxc5 {[%clk 0:02:42]}  Qxc5 {[%clk 0:02:58]} 13. O-O-O {[%clk 0:02:42]}  O-O {[%clk 0:02:54]} 14. g4 {[%clk 0:02:31]}  Nxg4 {[%clk 0:02:35]} 15. Rhg1 {[%clk 0:02:28]}  f5 {[%clk 0:02:32]} 16. exf5 {[%clk 0:02:17]}  exf5 {[%clk 0:02:33]} 17. Rg3 {[%clk 0:01:55]}  Be6 {[%clk 0:02:28]} 18. Qg2 {[%clk 0:01:20]}  Rf7 {[%clk 0:02:18]} 19. Re1 {[%clk 0:01:16]}  Re8 {[%clk 0:02:10]} 20. Bxf5 {[%clk 0:00:39]}  Qxf5 {[%clk 0:02:02]} 21. Rxg4 {[%clk 0:00:40]}  h6 {[%clk 0:01:53]} 22. h3 {[%clk 0:00:31]}  Bd7 {[%clk 0:01:43]} 23. Rxe8+ {[%clk 0:00:30]}  Bxe8 {[%clk 0:01:44]} 24. Qd5 {[%clk 0:00:28]}  Qxd5 {[%clk 0:01:36]} 25. Nxd5 {[%clk 0:00:29]}  Bd7 {[%clk 0:01:31]} 26. Rg3 {[%clk 0:00:25]}  Bc6 {[%clk 0:01:31]} 27. Rd3 {[%clk 0:00:19]}  Kf8 {[%clk 0:01:31]} 28. Nb4 {[%clk 0:00:19]}  Be4 {[%clk 0:01:26]} 29. Rxd6 {[%clk 0:00:18]}  Rxf4 {[%clk 0:01:27]} 30. Rd4 {[%clk 0:00:17]}  g5 {[%clk 0:01:25]} 31. Kd2 {[%clk 0:00:15]}  Bf5 {[%clk 0:01:14]} 32. Rxf4 {[%clk 0:00:13]}  gxf4 {[%clk 0:01:14]} 33. h4 {[%clk 0:00:12]}  Kf7 {[%clk 0:01:15]} 34. Nd5 {[%clk 0:00:12]}  f3 {[%clk 0:01:15]} 35. Ke3 {[%clk 0:00:12]}  Bxc2 {[%clk 0:01:13]} 36. Kxf3 {[%clk 0:00:13]}  Ke6 {[%clk 0:01:12]} 37. Ne3 {[%clk 0:00:13]}  Bd3 {[%clk 0:01:09]} 38. Kf4 {[%clk 0:00:14]}  a5 {[%clk 0:01:10]} 39. Ng4 {[%clk 0:00:12]}  h5 {[%clk 0:01:10]} 40. Ne5 {[%clk 0:00:08]}  Be2 {[%clk 0:01:09]} 41. Ke4 {[%clk 0:00:08]}  Kd6 {[%clk 0:01:02]} 42. Ng6 {[%clk 0:00:07]}  Kc5 {[%clk 0:01:00]} 43. Nf4 {[%clk 0:00:07]}  Bd1 {[%clk 0:00:59]} 44. Kd3 {[%clk 0:00:07]}  b5 {[%clk 0:00:57]} 45. Kc3 {[%clk 0:00:07]}  b4+ {[%clk 0:00:56]} 46. axb4+ {[%clk 0:00:08]}  axb4+ {[%clk 0:00:57]} 47. Kd3 {[%clk 0:00:09]}  Bg4 {[%clk 0:00:57]} 48. Ng2 {[%clk 0:00:04]}  Bf5+ {[%clk 0:00:57]} 49. Ke3 {[%clk 0:00:03]}  Kc4 {[%clk 0:00:57]} 50. Kd2 {[%clk 0:00:04]}  Kd4 {[%clk 0:00:56]} 51. Ne3 {[%clk 0:00:04]}  Be4 {[%clk 0:00:54]} 52. Nf1 {[%clk 0:00:04]}  Bf3 {[%clk 0:00:53]} 53. Ne3 {[%clk 0:00:04]}  Be4 {[%clk 0:00:51]} 54. Nf1 {[%clk 0:00:04]}  Bg6 {[%clk 0:00:50]} 55. Ng3 {[%clk 0:00:03]}  b3 {[%clk 0:00:49]} 56. Ke2 {[%clk 0:00:04]}  Bf7 {[%clk 0:00:48]} 57. Kd2 {[%clk 0:00:04]}  Be8 {[%clk 0:00:44]} 58. Ke2 {[%clk 0:00:04]}  Bd7 {[%clk 0:00:43]} 59. Kd2 {[%clk 0:00:04]}  Bg4 {[%clk 0:00:43]} 60. Nf1 {[%clk 0:00:02]}  Ke4 {[%clk 0:00:43]} 61. Kc3 {[%clk 0:00:02]}  Kf4 {[%clk 0:00:39]} 62. Kxb3 {[%clk 0:00:03]}  Be2 {[%clk 0:00:37]} 63. Nd2 {[%clk 0:00:03]}  Kg4 {[%clk 0:00:37]} 64. Ne4 {[%clk 0:00:04]}  Kxh4 {[%clk 0:00:30]} 65. Nf6 {[%clk 0:00:04]}  Kg5 {[%clk 0:00:30]} 66. Nxh5 {[%clk 0:00:05]}  Bxh5 {[%clk 0:00:30]} 67. Kc3 {[%clk 0:00:05]}  Kf6 {[%clk 0:00:30]} 68. b4 {[%clk 0:00:06]}  Ke7 {[%clk 0:00:30]} 69. b5 {[%clk 0:00:07]}  Kd7 {[%clk 0:00:31]} 70. b6 {[%clk 0:00:08]}  Kc6 {[%clk 0:00:31]} 71. b7 {[%clk 0:00:09]}  Kxb7 {[%clk 0:00:32]} 1/2-1/2


[Site "https://www.chess.com"]

[Event "Titled Tuesday Blitz January 04 2022"]
[White "Grandelius, Nils"]
[Black "Daggupati, Balaji"]
[WhiteFideId "1710400"]
[BlackFideId "2090759"]
[WhiteElo "2617"]
[BlackElo "2672"]
[Result "1-0"]
[Round "04"]
[TimeControl "180+1"]
[Date "2022.01.04"]
[WhiteClock "0:02:07"]
[BlackClock "0:00:15"]

1. Nf3 {[%clk 0:03:00]}  d5 {[%clk 0:02:59]} 2. g3 {[%clk 0:03:01]}  Bg4 {[%clk 0:03:00]} 3. Bg2 {[%clk 0:03:01]}  c6 {[%clk 0:03:00]} 4. O-O {[%clk 0:03:01]}  Nd7 {[%clk 0:03:01]} 5. h3 {[%clk 0:03:01]}  Bh5 {[%clk 0:03:00]} 6. d4 {[%clk 0:03:00]}  Ngf6 {[%clk 0:02:59]} 7. c4 {[%clk 0:03:01]}  e6 {[%clk 0:02:59]} 8. cxd5 {[%clk 0:03:01]}  exd5 {[%clk 0:02:59]} 9. Ne5 {[%clk 0:03:02]}  Bg6 {[%clk 0:02:53]} 10. Nc3 {[%clk 0:03:00]}  Nxe5 {[%clk 0:02:13]} 11. dxe5 {[%clk 0:03:01]}  Ne4 {[%clk 0:02:13]} 12. Nxe4 {[%clk 0:02:53]}  Bxe4 {[%clk 0:02:11]} 13. Bxe4 {[%clk 0:02:54]}  dxe4 {[%clk 0:02:12]} 14. Qb3 {[%clk 0:02:54]}  Qc7 {[%clk 0:02:09]} 15. Bf4 {[%clk 0:02:53]}  Qb6 {[%clk 0:01:50]} 16. Qc2 {[%clk 0:02:45]}  Be7 {[%clk 0:01:43]} 17. Qxe4 {[%clk 0:02:44]}  O-O {[%clk 0:01:34]} 18. b3 {[%clk 0:02:44]}  Rad8 {[%clk 0:01:32]} 19. Rfd1 {[%clk 0:02:42]}  Qa5 {[%clk 0:01:30]} 20. e6 {[%clk 0:02:32]}  f5 {[%clk 0:01:14]} 21. Qc4 {[%clk 0:02:31]}  g5 {[%clk 0:00:34]} 22. Bxg5 {[%clk 0:02:27]}  Qc7 {[%clk 0:00:21]} 23. Rd7 {[%clk 0:02:13]}  Qe5 {[%clk 0:00:17]} 24. Rad1 {[%clk 0:02:14]}  Rxd7 {[%clk 0:00:14]} 25. exd7+ {[%clk 0:02:10]}  Kg7 {[%clk 0:00:14]} 26. Bxe7 {[%clk 0:02:06]}  Qxe7 {[%clk 0:00:15]} 27. Qd4+ {[%clk 0:02:07]} 1-0


[Site "https://www.chess.com"]

[Event "Titled Tuesday Blitz January 04 2022"]
[White "Guseinov, Gadir"]
[Black "Hamitevici, Vladimir"]
[WhiteFideId "13401378"]
[BlackFideId "13902393"]
[WhiteElo "2581"]
[BlackElo "2359"]
[Result "1-0"]
[Round "04"]
[TimeControl "180+1"]
[Date "2022.01.04"]
[WhiteClock "0:00:32"]
[BlackClock "0:00:01"]

1. e4 {[%clk 0:03:00]}  c6 {[%clk 0:02:59]} 2. d4 {[%clk 0:03:00]}  d5 {[%clk 0:02:59]} 3. Nd2 {[%clk 0:03:00]}  dxe4 {[%clk 0:02:57]} 4. Nxe4 {[%clk 0:03:01]}  Bf5 {[%clk 0:02:54]} 5. Ng3 {[%clk 0:03:01]}  Bg6 {[%clk 0:02:54]} 6. h4 {[%clk 0:03:02]}  h6 {[%clk 0:02:52]} 7. Nf3 {[%clk 0:03:02]}  Nd7 {[%clk 0:02:49]} 8. h5 {[%clk 0:03:01]}  Bh7 {[%clk 0:02:49]} 9. Bd3 {[%clk 0:03:02]}  Bxd3 {[%clk 0:02:49]} 10. Qxd3 {[%clk 0:03:03]}  e6 {[%clk 0:02:47]} 11. Bd2 {[%clk 0:03:03]}  Ngf6 {[%clk 0:02:32]} 12. O-O-O {[%clk 0:03:03]}  c5 {[%clk 0:02:25]} 13. Ne4 {[%clk 0:02:52]}  Qb6 {[%clk 0:02:18]} 14. Nxf6+ {[%clk 0:02:47]}  Nxf6 {[%clk 0:02:16]} 15. dxc5 {[%clk 0:02:47]}  Bxc5 {[%clk 0:02:17]} 16. Ne5 {[%clk 0:02:47]}  Rc8 {[%clk 0:01:44]} 17. Rh4 {[%clk 0:02:39]}  Bxf2 {[%clk 0:01:39]} 18. Rb4 {[%clk 0:02:35]}  Qa6 {[%clk 0:01:28]} 19. Qxa6 {[%clk 0:02:02]}  bxa6 {[%clk 0:01:29]} 20. Rb7 {[%clk 0:02:01]}  O-O {[%clk 0:01:27]} 21. Bb4 {[%clk 0:02:01]}  Bc5 {[%clk 0:01:24]} 22. Nd7 {[%clk 0:01:55]}  Nxd7 {[%clk 0:01:12]} 23. Rdxd7 {[%clk 0:01:56]}  Bxb4 {[%clk 0:01:04]} 24. Rxb4 {[%clk 0:01:57]}  Rc5 {[%clk 0:01:04]} 25. g4 {[%clk 0:01:56]}  a5 {[%clk 0:00:54]} 26. Rf4 {[%clk 0:01:56]}  a6 {[%clk 0:00:47]} 27. b3 {[%clk 0:01:50]}  f6 {[%clk 0:00:27]} 28. Rd6 {[%clk 0:01:48]}  Rfc8 {[%clk 0:00:28]} 29. c4 {[%clk 0:01:46]}  R8c6 {[%clk 0:00:26]} 30. Rd8+ {[%clk 0:01:46]}  Kh7 {[%clk 0:00:24]} 31. Rfd4 {[%clk 0:01:44]}  e5 {[%clk 0:00:18]} 32. R4d7 {[%clk 0:01:43]}  Rc7 {[%clk 0:00:17]} 33. Rd6 {[%clk 0:01:41]}  Re7 {[%clk 0:00:15]} 34. Rxa6 {[%clk 0:01:39]}  g6 {[%clk 0:00:15]} 35. Raa8 {[%clk 0:01:37]}  gxh5 {[%clk 0:00:15]} 36. Rh8+ {[%clk 0:01:36]}  Kg7 {[%clk 0:00:15]} 37. Rag8+ {[%clk 0:01:37]}  Kf7 {[%clk 0:00:16]} 38. gxh5 {[%clk 0:01:35]}  e4 {[%clk 0:00:15]} 39. Rf8+ {[%clk 0:01:32]}  Kg7 {[%clk 0:00:11]} 40. Rfg8+ {[%clk 0:01:20]}  Kf7 {[%clk 0:00:11]} 41. Rg4 {[%clk 0:01:20]}  Rxh5 {[%clk 0:00:11]} 42. Rh7+ {[%clk 0:01:20]}  Kf8 {[%clk 0:00:10]} 43. Rxe7 {[%clk 0:01:19]}  Kxe7 {[%clk 0:00:11]} 44. Rxe4+ {[%clk 0:01:19]}  Kd6 {[%clk 0:00:12]} 45. Kb2 {[%clk 0:01:06]}  Re5 {[%clk 0:00:11]} 46. Rd4+ {[%clk 0:01:04]}  Ke6 {[%clk 0:00:11]} 47. a3 {[%clk 0:00:59]}  h5 {[%clk 0:00:11]} 48. b4 {[%clk 0:01:00]}  axb4 {[%clk 0:00:11]} 49. axb4 {[%clk 0:01:00]}  f5 {[%clk 0:00:11]} 50. Rd8 {[%clk 0:00:53]}  Re4 {[%clk 0:00:09]} 51. Kc3 {[%clk 0:00:52]}  h4 {[%clk 0:00:08]} 52. Rh8 {[%clk 0:00:52]}  Rg4 {[%clk 0:00:09]} 53. b5 {[%clk 0:00:52]}  f4 {[%clk 0:00:09]} 54. b6 {[%clk 0:00:51]}  Rg7 {[%clk 0:00:09]} 55. Rxh4 {[%clk 0:00:39]}  Rf7 {[%clk 0:00:09]} 56. Rh6+ {[%clk 0:00:37]}  Kd7 {[%clk 0:00:08]} 57. c5 {[%clk 0:00:37]}  f3 {[%clk 0:00:08]} 58. c6+ {[%clk 0:00:38]}  Ke7 {[%clk 0:00:06]} 59. b7 {[%clk 0:00:33]}  f2 {[%clk 0:00:02]} 60. b8=Q {[%clk 0:00:31]}  f1=Q {[%clk 0:00:02]} 61. Qd6+ {[%clk 0:00:30]}  Ke8 {[%clk 0:00:02]} 62. Re6+ {[%clk 0:00:31]}  Re7 {[%clk 0:00:01]} 63. Qxe7# {[%clk 0:00:32]} 1-0


[Site "https://www.chess.com"]

[Event "Titled Tuesday Blitz January 04 2022"]
[White "Gvanceladze, Anna"]
[Black "Vokhidov, Shamsiddin"]
[WhiteFideId "4113721"]
[BlackFideId "14204223"]
[WhiteElo "2048"]
[BlackElo "2611"]
[Result "1/2-1/2"]
[Round "04"]
[TimeControl "180+1"]
[Date "2022.01.04"]
[WhiteClock "0:00:21"]
[BlackClock "0:00:35"]

1. e4 {[%clk 0:03:00]}  c5 {[%clk 0:03:00]} 2. Nf3 {[%clk 0:03:00]}  Nc6 {[%clk 0:03:00]} 3. Nc3 {[%clk 0:02:59]}  d6 {[%clk 0:03:00]} 4. d4 {[%clk 0:02:58]}  cxd4 {[%clk 0:03:00]} 5. Nxd4 {[%clk 0:02:59]}  Nf6 {[%clk 0:03:00]} 6. Bg5 {[%clk 0:02:58]}  Bd7 {[%clk 0:03:00]} 7. Qd2 {[%clk 0:02:57]}  a6 {[%clk 0:03:00]} 8. f4 {[%clk 0:02:55]}  e6 {[%clk 0:02:58]} 9. O-O-O {[%clk 0:02:54]}  b5 {[%clk 0:02:56]} 10. a3 {[%clk 0:02:50]}  Be7 {[%clk 0:02:53]} 11. Be2 {[%clk 0:02:49]}  Rc8 {[%clk 0:02:50]} 12. Bf3 {[%clk 0:02:48]}  b4 {[%clk 0:02:45]} 13. axb4 {[%clk 0:02:46]}  Nxb4 {[%clk 0:02:46]} 14. Nb3 {[%clk 0:02:39]}  Qc7 {[%clk 0:02:22]} 15. Bxf6 {[%clk 0:02:26]}  Bxf6 {[%clk 0:02:15]} 16. Qxd6 {[%clk 0:02:26]}  Qxd6 {[%clk 0:01:55]} 17. Rxd6 {[%clk 0:02:25]}  Bxc3 {[%clk 0:01:56]} 18. bxc3 {[%clk 0:02:24]}  Rxc3 {[%clk 0:01:57]} 19. Rb6 {[%clk 0:01:56]}  Nc6 {[%clk 0:01:10]} 20. Kb2 {[%clk 0:01:45]}  Rc4 {[%clk 0:01:08]} 21. Rd1 {[%clk 0:01:30]}  a5 {[%clk 0:01:03]} 22. e5 {[%clk 0:01:22]}  Nb4 {[%clk 0:01:01]} 23. c3 {[%clk 0:01:07]}  Nd5 {[%clk 0:00:57]} 24. Bxd5 {[%clk 0:00:57]}  exd5 {[%clk 0:00:58]} 25. Nxa5 {[%clk 0:00:50]}  Rc5 {[%clk 0:00:50]} 26. Nb3 {[%clk 0:00:46]}  Rc6 {[%clk 0:00:50]} 27. Rb8+ {[%clk 0:00:43]}  Rc8 {[%clk 0:00:49]} 28. Rxc8+ {[%clk 0:00:43]}  Bxc8 {[%clk 0:00:50]} 29. Rxd5 {[%clk 0:00:43]}  Ke7 {[%clk 0:00:50]} 30. Nc5 {[%clk 0:00:39]}  Bf5 {[%clk 0:00:48]} 31. c4 {[%clk 0:00:33]}  Rb8+ {[%clk 0:00:48]} 32. Kc3 {[%clk 0:00:33]}  Rb1 {[%clk 0:00:47]} 33. Rd2 {[%clk 0:00:32]}  h5 {[%clk 0:00:42]} 34. g3 {[%clk 0:00:32]}  h4 {[%clk 0:00:41]} 35. gxh4 {[%clk 0:00:31]}  Rf1 {[%clk 0:00:41]} 36. Ra2 {[%clk 0:00:26]}  Rxf4 {[%clk 0:00:37]} 37. Ra7+ {[%clk 0:00:26]}  Kf8 {[%clk 0:00:37]} 38. Ra8+ {[%clk 0:00:20]}  Ke7 {[%clk 0:00:37]} 39. Ra7+ {[%clk 0:00:20]}  Kf8 {[%clk 0:00:35]} 40. Ra8+ {[%clk 0:00:20]}  Ke7 {[%clk 0:00:35]} 41. Ra7+ {[%clk 0:00:21]} 1/2-1/2


[Site "https://www.chess.com"]

[Event "Titled Tuesday Blitz January 04 2022"]
[White "Harshavardhan G B"]
[Black "Babazada, Khazar"]
[WhiteFideId "25059009"]
[BlackFideId "13413554"]
[WhiteElo "1831"]
[BlackElo "2418"]
[Result "1/2-1/2"]
[Round "04"]
[TimeControl "180+1"]
[Date "2022.01.04"]
[WhiteClock "0:00:21"]
[BlackClock "0:00:09"]

1. e4 {[%clk 0:02:50]}  Nf6 {[%clk 0:02:59]} 2. e5 {[%clk 0:02:50]}  Nd5 {[%clk 0:02:58]} 3. d4 {[%clk 0:02:50]}  d6 {[%clk 0:02:58]} 4. Nf3 {[%clk 0:02:50]}  Nb6 {[%clk 0:02:59]} 5. Bd3 {[%clk 0:02:45]}  g6 {[%clk 0:02:59]} 6. Nc3 {[%clk 0:02:41]}  Bg7 {[%clk 0:02:58]} 7. Bf4 {[%clk 0:02:40]}  O-O {[%clk 0:02:58]} 8. Qe2 {[%clk 0:02:40]}  Nc6 {[%clk 0:02:58]} 9. O-O-O {[%clk 0:02:38]}  Bg4 {[%clk 0:02:58]} 10. Qe3 {[%clk 0:02:35]}  Nb4 {[%clk 0:02:25]} 11. h3 {[%clk 0:02:20]}  Nxd3+ {[%clk 0:02:15]} 12. Qxd3 {[%clk 0:02:18]}  Bf5 {[%clk 0:02:13]} 13. Qe2 {[%clk 0:02:18]}  dxe5 {[%clk 0:01:52]} 14. dxe5 {[%clk 0:02:15]}  Qe8 {[%clk 0:01:52]} 15. g4 {[%clk 0:02:13]}  Be6 {[%clk 0:01:52]} 16. Nd4 {[%clk 0:02:12]}  Bc4 {[%clk 0:01:51]} 17. Qf3 {[%clk 0:02:11]}  c6 {[%clk 0:01:47]} 18. h4 {[%clk 0:02:10]}  Rd8 {[%clk 0:01:44]} 19. h5 {[%clk 0:02:06]}  f6 {[%clk 0:01:38]} 20. Qe3 {[%clk 0:01:57]}  c5 {[%clk 0:01:23]} 21. Nb3 {[%clk 0:01:54]}  Nd5 {[%clk 0:01:03]} 22. Nxd5 {[%clk 0:01:51]}  Bxd5 {[%clk 0:01:04]} 23. hxg6 {[%clk 0:01:50]}  Qxg6 {[%clk 0:01:01]} 24. Rhe1 {[%clk 0:01:38]}  b6 {[%clk 0:01:01]} 25. exf6 {[%clk 0:01:29]}  exf6 {[%clk 0:00:59]} 26. f3 {[%clk 0:01:08]}  Qf7 {[%clk 0:00:53]} 27. Qf2 {[%clk 0:01:01]}  Rfe8 {[%clk 0:00:52]} 28. Qh2 {[%clk 0:00:58]}  Bxf3 {[%clk 0:00:49]} 29. Rxd8 {[%clk 0:00:57]}  Rxd8 {[%clk 0:00:50]} 30. Bh6 {[%clk 0:00:56]}  Qe6 {[%clk 0:00:22]} 31. Rg1 {[%clk 0:00:55]}  Qe2 {[%clk 0:00:17]} 32. Qxe2 {[%clk 0:00:48]}  Bxh6+ {[%clk 0:00:17]} 33. Qd2 {[%clk 0:00:48]}  Bxd2+ {[%clk 0:00:17]} 34. Nxd2 {[%clk 0:00:49]}  Bd5 {[%clk 0:00:17]} 35. g5 {[%clk 0:00:40]}  f5 {[%clk 0:00:17]} 36. c4 {[%clk 0:00:39]}  Be6 {[%clk 0:00:17]} 37. Nf3 {[%clk 0:00:38]}  Bxc4 {[%clk 0:00:16]} 38. b3 {[%clk 0:00:37]}  Bd5 {[%clk 0:00:17]} 39. Ne5 {[%clk 0:00:37]}  Re8 {[%clk 0:00:17]} 40. Nd7 {[%clk 0:00:37]}  Kg7 {[%clk 0:00:16]} 41. Nf6 {[%clk 0:00:36]}  Re5 {[%clk 0:00:16]} 42. Rd1 {[%clk 0:00:34]}  Be6 {[%clk 0:00:16]} 43. Rd8 {[%clk 0:00:33]}  Kg6 {[%clk 0:00:17]} 44. Re8 {[%clk 0:00:31]}  Kxg5 {[%clk 0:00:15]} 45. Nxh7+ {[%clk 0:00:31]}  Kg6 {[%clk 0:00:15]} 46. Re7 {[%clk 0:00:30]}  Re4 {[%clk 0:00:12]} 47. Kd2 {[%clk 0:00:28]}  Bd5 {[%clk 0:00:10]} 48. Nf8+ {[%clk 0:00:27]}  Kf6 {[%clk 0:00:10]} 49. Rxa7 {[%clk 0:00:27]}  Bc6 {[%clk 0:00:06]} 50. Rc7 {[%clk 0:00:26]}  Bb5 {[%clk 0:00:06]} 51. a4 {[%clk 0:00:26]}  Bf1 {[%clk 0:00:04]} 52. Nd7+ {[%clk 0:00:25]}  Ke6 {[%clk 0:00:04]} 53. Nxb6 {[%clk 0:00:25]}  Rb4 {[%clk 0:00:04]} 54. Nd7 {[%clk 0:00:23]}  Kd6 {[%clk 0:00:05]} 55. Rxc5 {[%clk 0:00:15]}  Kxd7 {[%clk 0:00:05]} 56. Rxf5 {[%clk 0:00:16]}  Bh3 {[%clk 0:00:05]} 57. Rf3 {[%clk 0:00:15]}  Be6 {[%clk 0:00:05]} 58. Kc2 {[%clk 0:00:15]}  Rxb3 {[%clk 0:00:03]} 59. Rxb3 {[%clk 0:00:15]}  Bxb3+ {[%clk 0:00:04]} 60. Kxb3 {[%clk 0:00:15]}  Kc6 {[%clk 0:00:05]} 61. Kb4 {[%clk 0:00:16]}  Kb6 {[%clk 0:00:06]} 62. a5+ {[%clk 0:00:17]}  Ka7 {[%clk 0:00:06]} 63. Kb5 {[%clk 0:00:18]}  Ka8 {[%clk 0:00:07]} 64. Kb6 {[%clk 0:00:19]}  Kb8 {[%clk 0:00:08]} 65. a6 {[%clk 0:00:20]}  Ka8 {[%clk 0:00:09]} 66. a7 {[%clk 0:00:21]} 1/2-1/2


[Site "https://www.chess.com"]

[Event "Titled Tuesday Blitz January 04 2022"]
[White "Holt, Conrad"]
[Black "Wagner, Dennis"]
[WhiteFideId "2034387"]
[BlackFideId "24650684"]
[WhiteElo "2586"]
[BlackElo "2355"]
[Result "1-0"]
[Round "04"]
[TimeControl "180+1"]
[Date "2022.01.04"]
[WhiteClock "0:00:09"]
[BlackClock "0:00:08"]

1. d4 {[%clk 0:03:00]}  Nf6 {[%clk 0:02:58]} 2. c4 {[%clk 0:02:59]}  e6 {[%clk 0:02:58]} 3. Nc3 {[%clk 0:02:59]}  Bb4 {[%clk 0:02:53]} 4. Qc2 {[%clk 0:02:59]}  d5 {[%clk 0:02:51]} 5. cxd5 {[%clk 0:02:59]}  exd5 {[%clk 0:02:51]} 6. Bg5 {[%clk 0:02:59]}  h6 {[%clk 0:02:50]} 7. Bxf6 {[%clk 0:02:58]}  Qxf6 {[%clk 0:02:49]} 8. a3 {[%clk 0:02:58]}  Bxc3+ {[%clk 0:02:48]} 9. Qxc3 {[%clk 0:02:59]}  O-O {[%clk 0:02:44]} 10. e3 {[%clk 0:02:59]}  c6 {[%clk 0:02:25]} 11. Ne2 {[%clk 0:02:59]}  Bf5 {[%clk 0:02:20]} 12. Ng3 {[%clk 0:02:58]}  Bh7 {[%clk 0:02:21]} 13. Be2 {[%clk 0:02:56]}  Nd7 {[%clk 0:02:20]} 14. O-O {[%clk 0:02:56]}  Qd6 {[%clk 0:02:12]} 15. b4 {[%clk 0:02:47]}  a6 {[%clk 0:02:09]} 16. Rfc1 {[%clk 0:02:39]}  Rfc8 {[%clk 0:02:08]} 17. Bg4 {[%clk 0:02:38]}  Rc7 {[%clk 0:02:05]} 18. a4 {[%clk 0:02:36]}  Nf6 {[%clk 0:02:04]} 19. Bf3 {[%clk 0:02:28]}  Rac8 {[%clk 0:01:35]} 20. Qc5 {[%clk 0:02:21]}  Qd8 {[%clk 0:01:26]} 21. Qa5 {[%clk 0:02:13]}  Bd3 {[%clk 0:01:24]} 22. Ra3 {[%clk 0:02:02]}  Bc4 {[%clk 0:01:21]} 23. Be2 {[%clk 0:02:00]}  Bxe2 {[%clk 0:01:12]} 24. Nxe2 {[%clk 0:02:00]}  Ne4 {[%clk 0:01:11]} 25. Ra2 {[%clk 0:00:52]}  g6 {[%clk 0:01:08]} 26. Nf4 {[%clk 0:00:48]}  Nd6 {[%clk 0:00:59]} 27. Qc5 {[%clk 0:00:47]}  Nc4 {[%clk 0:00:54]} 28. a5 {[%clk 0:00:33]}  Qf6 {[%clk 0:00:32]} 29. Nd3 {[%clk 0:00:29]}  Kg7 {[%clk 0:00:31]} 30. Ne1 {[%clk 0:00:20]}  Nd6 {[%clk 0:00:26]} 31. Qc2 {[%clk 0:00:19]}  h5 {[%clk 0:00:26]} 32. Nd3 {[%clk 0:00:19]}  h4 {[%clk 0:00:25]} 33. Qd1 {[%clk 0:00:19]}  h3 {[%clk 0:00:24]} 34. g3 {[%clk 0:00:19]}  Qf5 {[%clk 0:00:24]} 35. Nf4 {[%clk 0:00:17]}  g5 {[%clk 0:00:21]} 36. g4 {[%clk 0:00:13]}  Qh7 {[%clk 0:00:10]} 37. Nh5+ {[%clk 0:00:12]}  Kf8 {[%clk 0:00:09]} 38. Qf3 {[%clk 0:00:12]}  Re7 {[%clk 0:00:04]} 39. Qxh3 {[%clk 0:00:11]}  Re4 {[%clk 0:00:04]} 40. Qf3 {[%clk 0:00:10]}  Qg6 {[%clk 0:00:04]} 41. h3 {[%clk 0:00:10]}  Ke7 {[%clk 0:00:03]} 42. Ng3 {[%clk 0:00:11]}  f5 {[%clk 0:00:01]} 43. gxf5 {[%clk 0:00:10]}  Qh7 {[%clk 0:00:01]} 44. Nxe4 {[%clk 0:00:10]}  dxe4 {[%clk 0:00:01]} 45. Qg4 {[%clk 0:00:11]}  Nxf5 {[%clk 0:00:02]} 46. Qxe4+ {[%clk 0:00:10]}  Kf6 {[%clk 0:00:02]} 47. Qf3 {[%clk 0:00:10]}  Ke7 {[%clk 0:00:02]} 48. d5 {[%clk 0:00:10]}  Nh4 {[%clk 0:00:02]} 49. Qg4 {[%clk 0:00:09]}  Kd8 {[%clk 0:00:02]} 50. dxc6 {[%clk 0:00:09]}  bxc6 {[%clk 0:00:03]} 51. Rd2+ {[%clk 0:00:09]}  Kc7 {[%clk 0:00:03]} 52. Rxc6+ {[%clk 0:00:08]}  Kxc6 {[%clk 0:00:04]} 53. Qxc8+ {[%clk 0:00:09]}  Kb5 {[%clk 0:00:04]} 54. Qd7+ {[%clk 0:00:09]}  Kxb4 {[%clk 0:00:05]} 55. Qxh7 {[%clk 0:00:08]}  Nf3+ {[%clk 0:00:04]} 56. Kh1 {[%clk 0:00:08]}  Nxd2 {[%clk 0:00:05]} 57. Qf5 {[%clk 0:00:08]}  Kc3 {[%clk 0:00:04]} 58. Qxg5 {[%clk 0:00:08]}  Kc2 {[%clk 0:00:05]} 59. Qg6+ {[%clk 0:00:09]}  Kd1 {[%clk 0:00:06]} 60. Qxa6 {[%clk 0:00:09]}  Ke1 {[%clk 0:00:07]} 61. Qd3 {[%clk 0:00:09]}  Kxf2 {[%clk 0:00:07]} 62. Qxd2+ {[%clk 0:00:09]}  Kf1 {[%clk 0:00:08]} 63. Qg2+ {[%clk 0:00:09]}  Ke1 {[%clk 0:00:08]} 64. a6 {[%clk 0:00:09]} 1-0


[Site "https://www.chess.com"]

[Event "Titled Tuesday Blitz January 04 2022"]
[White "Howell, David W L"]
[Black "Provotorov, Ivan"]
[WhiteFideId "410608"]
[BlackFideId "4154657"]
[WhiteElo "2559"]
[BlackElo "2291"]
[Result "1-0"]
[Round "04"]
[TimeControl "180+1"]
[Date "2022.01.04"]
[WhiteClock "0:00:58"]
[BlackClock "0:00:02"]

1. e4 {[%clk 0:03:00]}  e6 {[%clk 0:02:57]} 2. d4 {[%clk 0:02:59]}  d5 {[%clk 0:02:57]} 3. e5 {[%clk 0:03:00]}  c5 {[%clk 0:02:57]} 4. c3 {[%clk 0:02:59]}  Qb6 {[%clk 0:02:58]} 5. Nf3 {[%clk 0:02:59]}  Nc6 {[%clk 0:02:58]} 6. Be2 {[%clk 0:02:59]}  cxd4 {[%clk 0:02:54]} 7. cxd4 {[%clk 0:02:59]}  Nge7 {[%clk 0:02:55]} 8. Na3 {[%clk 0:02:54]}  Nf5 {[%clk 0:02:54]} 9. Nc2 {[%clk 0:02:54]}  Bb4+ {[%clk 0:02:29]} 10. Kf1 {[%clk 0:02:53]}  Be7 {[%clk 0:02:28]} 11. h4 {[%clk 0:02:50]}  Bd7 {[%clk 0:02:20]} 12. h5 {[%clk 0:02:49]}  Rc8 {[%clk 0:02:13]} 13. g3 {[%clk 0:02:39]}  Nb4 {[%clk 0:02:11]} 14. Nxb4 {[%clk 0:02:36]}  Qxb4 {[%clk 0:02:02]} 15. Kg2 {[%clk 0:02:35]}  Bb5 {[%clk 0:02:00]} 16. Bxb5+ {[%clk 0:02:15]}  Qxb5 {[%clk 0:02:01]} 17. g4 {[%clk 0:02:15]}  Nh6 {[%clk 0:01:57]} 18. Bxh6 {[%clk 0:02:09]}  gxh6 {[%clk 0:01:58]} 19. Qd2 {[%clk 0:02:10]}  Rg8 {[%clk 0:01:54]} 20. Kh3 {[%clk 0:02:08]}  Bb4 {[%clk 0:01:11]} 21. Qxh6 {[%clk 0:01:57]}  Qd3 {[%clk 0:01:06]} 22. Qe3 {[%clk 0:01:58]}  Qe4 {[%clk 0:00:55]} 23. Rhg1 {[%clk 0:01:42]}  Rc2 {[%clk 0:00:40]} 24. Rac1 {[%clk 0:01:41]}  Rxc1 {[%clk 0:00:30]} 25. Qxe4 {[%clk 0:01:41]}  Rxg1 {[%clk 0:00:15]} 26. Qc2 {[%clk 0:01:25]}  R1xg4 {[%clk 0:00:09]} 27. Qc8+ {[%clk 0:01:21]}  Ke7 {[%clk 0:00:09]} 28. Qxb7+ {[%clk 0:01:22]}  Ke8 {[%clk 0:00:07]} 29. Qa8+ {[%clk 0:01:19]}  Kd7 {[%clk 0:00:06]} 30. Qxa7+ {[%clk 0:01:18]}  Kc6 {[%clk 0:00:05]} 31. Qa4+ {[%clk 0:01:18]}  Kc7 {[%clk 0:00:05]} 32. Qxb4 {[%clk 0:01:16]}  Rf4 {[%clk 0:00:05]} 33. Qc3+ {[%clk 0:01:14]}  Kd7 {[%clk 0:00:03]} 34. Qe3 {[%clk 0:01:12]}  Rgg4 {[%clk 0:00:03]} 35. a4 {[%clk 0:01:10]}  Re4 {[%clk 0:00:03]} 36. Qa3 {[%clk 0:01:08]}  Kc6 {[%clk 0:00:02]} 37. a5 {[%clk 0:01:06]}  Kb7 {[%clk 0:00:02]} 38. Qe7+ {[%clk 0:00:58]}  Ka6 {[%clk 0:00:02]} 39. Qb4 {[%clk 0:00:58]} 1-0


[Site "https://www.chess.com"]